[Event "*** Titled Tuesday Blitz AM"]
[Site "Chess.com"]
[Date "2020.01.07"]
[Round "7"]
[White "AdrianPetrisor1992"]
[Black "Anton_Demchenko"]
[Result "0-1"]
[WhiteElo "2638"]
[BlackElo "2978"]
[TimeControl "180+2"]
[EndTime "10:35:19 PST"]
[Termination "Anton_Demchenko won on time"]

1. Nf3 {[%clk 0:03:01.4]} 1... Nf6 {[%clk 0:03:00.7]} 2. g3 {[%clk 0:03:02.8]}
2... g6 {[%clk 0:03:02.2]} 3. Bg2 {[%clk 0:03:03.9]} 3... Bg7 {[%clk 0:03:04.1]}
4. O-O {[%clk 0:03:05.1]} 4... O-O {[%clk 0:03:06]} 5. d4 {[%clk 0:03:06.2]}
5... d6 {[%clk 0:03:07.2]} 6. b3 {[%clk 0:03:07.1]} 6... a5 {[%clk 0:03:07.6]}
7. a3 {[%clk 0:03:00.7]} 7... b6 {[%clk 0:03:07.5]} 8. Bb2 {[%clk 0:03:01.3]}
8... Bb7 {[%clk 0:03:08.2]} 9. c4 {[%clk 0:03:02.4]} 9... Ne4 {[%clk 0:03:07.1]}
10. Qc2 {[%clk 0:02:54]} 10... Qc8 {[%clk 0:02:52.5]} 11. d5 {[%clk 0:02:42]}
11... Nf6 {[%clk 0:02:23.3]} 12. Nbd2 {[%clk 0:02:32.7]} 12... e5 {[%clk
0:02:22]} 13. dxe6 {[%clk 0:02:22]} 13... fxe6 {[%clk 0:02:22.7]} 14. b4 {[%clk
0:02:10.5]} 14... Nc6 {[%clk 0:02:22.2]} 15. b5 {[%clk 0:02:03.5]} 15... Nd8
{[%clk 0:02:22.3]} 16. Rad1 {[%clk 0:01:46.4]} 16... Nf7 {[%clk 0:02:20.8]} 17.
Nd4 {[%clk 0:01:41.8]} 17... Bxg2 {[%clk 0:02:17.4]} 18. Kxg2 {[%clk 0:01:43.7]}
18... Qd7 {[%clk 0:02:10.9]} 19. Ne4 {[%clk 0:01:35.8]} 19... e5 {[%clk
0:01:55.7]} 20. Nc6 {[%clk 0:01:25.9]} 20... Rae8 {[%clk 0:01:51]} 21. Nxf6+
{[%clk 0:01:20.4]} 21... Bxf6 {[%clk 0:01:52.3]} 22. f4 {[%clk 0:01:12.3]} 22...
Qe6 {[%clk 0:01:39.1]} 23. f5 {[%clk 0:01:02.2]} 23... gxf5 {[%clk 0:01:40.2]}
24. Qxf5 {[%clk 0:01:03.4]} 24... Ng5 {[%clk 0:01:13.2]} 25. Qxe6+ {[%clk
0:00:57.7]} 25... Nxe6 {[%clk 0:01:14.1]} 26. h4 {[%clk 0:00:46.8]} 26... Bg7
{[%clk 0:00:56.8]} 27. Rxf8+ {[%clk 0:00:39]} 27... Bxf8 {[%clk 0:00:58.7]} 28.
Kf3 {[%clk 0:00:35.6]} 28... Nc5 {[%clk 0:00:52.7]} 29. Bc1 {[%clk 0:00:32.2]}
29... Bg7 {[%clk 0:00:43.4]} 30. Be3 {[%clk 0:00:32.7]} 30... Nd7 {[%clk
0:00:44.9]} 31. g4 {[%clk 0:00:24.3]} 31... Kf7 {[%clk 0:00:45.1]} 32. g5 {[%clk
0:00:24.9]} 32... Ke6 {[%clk 0:00:42.4]} 33. Ke4 {[%clk 0:00:21.6]} 33... Rf8
{[%clk 0:00:37.9]} 34. h5 {[%clk 0:00:22.6]} 34... h6 {[%clk 0:00:35.8]} 35.
gxh6 {[%clk 0:00:23]} 35... Nf6+ {[%clk 0:00:35.4]} 36. Kd3 {[%clk 0:00:24]}
36... Bh8 {[%clk 0:00:32.7]} 37. Rf1 {[%clk 0:00:22.8]} 37... Rg8 {[%clk
0:00:34.1]} 38. Rg1 {[%clk 0:00:17.7]} 38... Rxg1 {[%clk 0:00:27.6]} 39. Bxg1
{[%clk 0:00:19.6]} 39... Nxh5 {[%clk 0:00:28.1]} 40. Be3 {[%clk 0:00:20.4]}
40... Nf6 {[%clk 0:00:25.6]} 41. a4 {[%clk 0:00:21.1]} 41... Nd7 {[%clk
0:00:13.9]} 42. Nd8+ {[%clk 0:00:15.7]} 42... Kf6 {[%clk 0:00:12.8]} 43. Ke4
{[%clk 0:00:14.9]} 43... Ke7 {[%clk 0:00:09.6]} 44. Bg5+ {[%clk 0:00:13.2]}
44... Bf6 {[%clk 0:00:11]} 45. Nc6+ {[%clk 0:00:12.7]} 45... Ke6 {[%clk
0:00:12.5]} 46. h7 {[%clk 0:00:08]} 46... Nc5+ {[%clk 0:00:08.3]} 47. Kf3 {[%clk
0:00:06.4]} 47... Bg7 {[%clk 0:00:09.7]} 0-1

[Event "*** Titled Tuesday Blitz AM"]
[Site "Chess.com"]
[Date "2020.01.07"]
[Round "7"]
[White "Nbk90"]
[Black "Me_ch_an"]
[Result "0-1"]
[WhiteElo "2514"]
[BlackElo "2359"]
[TimeControl "180+2"]
[EndTime "10:35:22 PST"]
[Termination "Me_ch_an won on time"]

1. d4 {[%clk 0:02:59.6]} 1... d5 {[%clk 0:02:59.7]} 2. Nf3 {[%clk 0:02:59.4]}
2... Nf6 {[%clk 0:03:00.2]} 3. c4 {[%clk 0:02:59]} 3... dxc4 {[%clk 0:03:01]} 4.
e3 {[%clk 0:02:57.5]} 4... Bg4 {[%clk 0:02:59]} 5. Bxc4 {[%clk 0:02:56.8]} 5...
e6 {[%clk 0:03:00.1]} 6. Be2 {[%clk 0:02:53.6]} 6... a6 {[%clk 0:02:58.4]} 7.
Nc3 {[%clk 0:02:52]} 7... Nbd7 {[%clk 0:02:56.1]} 8. O-O {[%clk 0:02:47.7]} 8...
Bb4 {[%clk 0:02:56.8]} 9. Qb3 {[%clk 0:02:45.7]} 9... Qe7 {[%clk 0:02:53.5]} 10.
a3 {[%clk 0:02:43.6]} 10... Bxc3 {[%clk 0:02:54]} 11. bxc3 {[%clk 0:02:43.6]}
11... b5 {[%clk 0:02:52.9]} 12. a4 {[%clk 0:02:42.6]} 12... O-O {[%clk
0:02:18.3]} 13. axb5 {[%clk 0:02:25.7]} 13... Rfb8 {[%clk 0:02:17.4]} 14. Qd1
{[%clk 0:02:06.5]} 14... Ne4 {[%clk 0:02:13.5]} 15. Qc2 {[%clk 0:01:57.4]} 15...
Bf5 {[%clk 0:02:06.5]} 16. Bd3 {[%clk 0:01:57]} 16... Ndf6 {[%clk 0:01:35.9]}
17. Ne5 {[%clk 0:01:52.6]} 17... Qd6 {[%clk 0:01:16.6]} 18. Rxa6 {[%clk
0:01:46.3]} 18... Rxa6 {[%clk 0:01:14.5]} 19. bxa6 {[%clk 0:01:47.1]} 19... Qb6
{[%clk 0:00:52.2]} 20. f3 {[%clk 0:01:42.8]} 20... Nd6 {[%clk 0:00:49]} 21. e4
{[%clk 0:01:40.2]} 21... Bg6 {[%clk 0:00:47]} 22. Nxg6 {[%clk 0:01:38.9]} 22...
hxg6 {[%clk 0:00:42.3]} 23. e5 {[%clk 0:01:39.8]} 23... c5 {[%clk 0:00:35.2]}
24. exd6 {[%clk 0:01:31.4]} 24... cxd4 {[%clk 0:00:35.8]} 25. c4 {[%clk
0:01:23.3]} 25... Qxd6 {[%clk 0:00:35.4]} 26. c5 {[%clk 0:01:23]} 26... Qd5
{[%clk 0:00:34.1]} 27. c6 {[%clk 0:01:17.8]} 27... Rc8 {[%clk 0:00:32.6]} 28. a7
{[%clk 0:01:11.6]} 28... Qa5 {[%clk 0:00:33]} 29. Bf4 {[%clk 0:01:00.8]} 29...
Qxa7 {[%clk 0:00:33.2]} 30. Rc1 {[%clk 0:00:56.5]} 30... Nd5 {[%clk 0:00:33.4]}
31. Bd6 {[%clk 0:00:53.6]} 31... Nc3 {[%clk 0:00:28.8]} 32. c7 {[%clk
0:00:46.4]} 32... Qb6 {[%clk 0:00:27.6]} 33. Bg3 {[%clk 0:00:42.2]} 33... Qc5
{[%clk 0:00:25.9]} 34. Re1 {[%clk 0:00:37.8]} 34... Qa5 {[%clk 0:00:20.2]} 35.
Kh1 {[%clk 0:00:37.8]} 35... Nd5 {[%clk 0:00:13.3]} 36. Qc1 {[%clk 0:00:29.6]}
36... Ne3 {[%clk 0:00:11.3]} 37. Be4 {[%clk 0:00:27]} 37... e5 {[%clk
0:00:12.2]} 38. Qc6 {[%clk 0:00:19.3]} 38... Rxc7 {[%clk 0:00:12]} 39. Qe8+
{[%clk 0:00:19]} 39... Kh7 {[%clk 0:00:12.6]} 40. Qxe5 {[%clk 0:00:17.7]} 40...
Qd2 {[%clk 0:00:04.7]} 41. Qh5+ {[%clk 0:00:11.6]} 41... Kg8 {[%clk 0:00:05.3]}
42. Qh3 {[%clk 0:00:11.6]} 42... Rc1 {[%clk 0:00:05.2]} 0-1

[Event "*** Titled Tuesday Blitz AM"]
[Site "Chess.com"]
[Date "2020.01.07"]
[Round "7"]
[White "WorldChampionBulletChess"]
[Black "Alopekos"]
[Result "1-0"]
[WhiteElo "2096"]
[BlackElo "2447"]
[TimeControl "180+2"]
[EndTime "10:35:22 PST"]
[Termination "WorldChampionBulletChess won by resignation"]

1. d4 {[%clk 0:03:01.9]} 1... Nf6 {[%clk 0:02:59.8]} 2. c4 {[%clk 0:02:51.7]}
2... e6 {[%clk 0:02:59.6]} 3. a3 {[%clk 0:02:51]} 3... d5 {[%clk 0:02:58.4]} 4.
Nf3 {[%clk 0:02:50.6]} 4... c6 {[%clk 0:02:58.1]} 5. Nc3 {[%clk 0:02:50.9]} 5...
Nbd7 {[%clk 0:02:57]} 6. Bf4 {[%clk 0:02:49.6]} 6... dxc4 {[%clk 0:02:54.2]} 7.
e4 {[%clk 0:02:49.6]} 7... b5 {[%clk 0:02:53.1]} 8. b3 {[%clk 0:02:45.7]} 8...
cxb3 {[%clk 0:02:40.8]} 9. Qxb3 {[%clk 0:02:47.6]} 9... Qb6 {[%clk 0:02:35.6]}
10. Be2 {[%clk 0:02:43.7]} 10... Be7 {[%clk 0:02:35.7]} 11. O-O {[%clk
0:02:41.9]} 11... a6 {[%clk 0:02:35.1]} 12. d5 {[%clk 0:02:29.9]} 12... cxd5
{[%clk 0:02:25]} 13. exd5 {[%clk 0:02:31.8]} 13... Nc5 {[%clk 0:02:06.9]} 14.
Qa2 {[%clk 0:02:03.5]} 14... O-O {[%clk 0:02:06.6]} 15. Rfd1 {[%clk 0:01:10.9]}
15... exd5 {[%clk 0:02:03.3]} 16. Nxd5 {[%clk 0:01:11.2]} 16... Nxd5 {[%clk
0:02:03.3]} 17. Qxd5 {[%clk 0:01:13.1]} 17... Be6 {[%clk 0:02:01.6]} 18. Qh5
{[%clk 0:01:01.6]} 18... h6 {[%clk 0:01:40.4]} 19. Be3 {[%clk 0:00:58.4]} 19...
Qc7 {[%clk 0:01:34.2]} 20. Rac1 {[%clk 0:00:57.9]} 20... Rac8 {[%clk 0:01:02.4]}
21. Nd4 {[%clk 0:00:52]} 21... Qb8 {[%clk 0:00:52.9]} 22. Nxe6 {[%clk
0:00:24.6]} 22... Nxe6 {[%clk 0:00:54.8]} 23. Bd3 {[%clk 0:00:22.6]} 23... Rxc1
{[%clk 0:00:40.5]} 24. Rxc1 {[%clk 0:00:22.2]} 24... Rc8 {[%clk 0:00:41.9]} 25.
Qf5 {[%clk 0:00:18.2]} 25... g6 {[%clk 0:00:41.4]} 26. Qe4 {[%clk 0:00:15.3]}
26... Rxc1+ {[%clk 0:00:38.6]} 27. Bxc1 {[%clk 0:00:17.2]} 27... Qc7 {[%clk
0:00:38.9]} 28. Bxh6 {[%clk 0:00:10.6]} 28... Bf6 {[%clk 0:00:33.3]} 29. Qa8+
{[%clk 0:00:10.6]} 29... Qd8 {[%clk 0:00:27.6]} 30. Qxd8+ {[%clk 0:00:09.3]}
30... Nxd8 {[%clk 0:00:27.4]} 31. Bd2 {[%clk 0:00:09.7]} 31... Nc6 {[%clk
0:00:27.7]} 32. Be4 {[%clk 0:00:07]} 32... Nd8 {[%clk 0:00:21.7]} 33. g4 {[%clk
0:00:06.5]} 33... Bb2 {[%clk 0:00:21.3]} 34. Bb4 {[%clk 0:00:06.4]} 34... a5
{[%clk 0:00:18.4]} 35. Bxa5 {[%clk 0:00:06.9]} 35... Bxa3 {[%clk 0:00:20]} 36.
Bxd8 {[%clk 0:00:08]} 36... b4 {[%clk 0:00:21.2]} 37. Be7 {[%clk 0:00:08.7]}
37... Kg7 {[%clk 0:00:18.6]} 38. Bc5 {[%clk 0:00:08.6]} 38... g5 {[%clk
0:00:19.5]} 39. Bf5 {[%clk 0:00:08.1]} 39... Kf6 {[%clk 0:00:20]} 40. Kf1 {[%clk
0:00:09.2]} 40... Ke5 {[%clk 0:00:21]} 41. Ke2 {[%clk 0:00:10.1]} 41... Kd5
{[%clk 0:00:22.3]} 42. Be7 {[%clk 0:00:10.3]} 42... Kc4 {[%clk 0:00:21.4]} 43.
Kd2 {[%clk 0:00:11]} 43... b3 {[%clk 0:00:21.6]} 44. Bxa3 {[%clk 0:00:11.3]}
44... Kd5 {[%clk 0:00:21.4]} 45. Bb2 {[%clk 0:00:13.2]} 45... Kc4 {[%clk
0:00:21.8]} 46. Ke3 {[%clk 0:00:14.1]} 46... Kb4 {[%clk 0:00:23.2]} 47. f4
{[%clk 0:00:14.8]} 47... gxf4+ {[%clk 0:00:23.2]} 48. Kxf4 {[%clk 0:00:15.8]}
48... Kc4 {[%clk 0:00:24.6]} 49. h4 {[%clk 0:00:16.5]} 49... Kd5 {[%clk
0:00:25]} 50. h5 {[%clk 0:00:18.1]} 1-0

[Event "*** Titled Tuesday Blitz AM"]
[Site "Chess.com"]
[Date "2020.01.07"]
[Round "7"]
[White "Mikhail_Golubev"]
[Black "EugeneRougon"]
[Result "0-1"]
[WhiteElo "2584"]
[BlackElo "2731"]
[TimeControl "180+2"]
[EndTime "10:35:24 PST"]
[Termination "EugeneRougon won by resignation"]

1. e4 {[%clk 0:03:01.9]} 1... e6 {[%clk 0:03:00.8]} 2. d4 {[%clk 0:03:02.5]}
2... d5 {[%clk 0:03:01.4]} 3. Nc3 {[%clk 0:03:04.1]} 3... Bb4 {[%clk 0:03:02.4]}
4. e5 {[%clk 0:03:05.1]} 4... c5 {[%clk 0:03:04]} 5. a3 {[%clk 0:03:06.2]} 5...
Bxc3+ {[%clk 0:03:05.2]} 6. bxc3 {[%clk 0:03:06.7]} 6... Ne7 {[%clk 0:03:06.9]}
7. a4 {[%clk 0:03:07.8]} 7... Nbc6 {[%clk 0:02:36.2]} 8. Nf3 {[%clk 0:03:07.6]}
8... Qa5 {[%clk 0:02:34.1]} 9. Bd2 {[%clk 0:03:08.7]} 9... Qc7 {[%clk
0:02:26.4]} 10. Bd3 {[%clk 0:03:03]} 10... h6 {[%clk 0:02:24.9]} 11. O-O {[%clk
0:03:02.3]} 11... b6 {[%clk 0:02:26.1]} 12. Qe1 {[%clk 0:02:36.2]} 12... a5
{[%clk 0:02:21.7]} 13. Qe3 {[%clk 0:02:16.6]} 13... cxd4 {[%clk 0:02:16.3]} 14.
cxd4 {[%clk 0:02:13.4]} 14... Ba6 {[%clk 0:02:17.2]} 15. Bxa6 {[%clk 0:01:42.7]}
15... Rxa6 {[%clk 0:02:17.8]} 16. Rfc1 {[%clk 0:01:39]} 16... O-O {[%clk
0:02:12.5]} 17. Qf4 {[%clk 0:01:40]} 17... Rc8 {[%clk 0:01:58.1]} 18. Qg4 {[%clk
0:01:34.4]} 18... Nf5 {[%clk 0:01:58.9]} 19. c4 {[%clk 0:01:23.7]} 19... dxc4
{[%clk 0:01:57]} 20. Rxc4 {[%clk 0:01:16.6]} 20... Qd7 {[%clk 0:01:53.8]} 21.
Rac1 {[%clk 0:01:16.8]} 21... Raa8 {[%clk 0:01:46.1]} 22. Qe4 {[%clk 0:01:06.9]}
22... Nfe7 {[%clk 0:01:30.5]} 23. Qg4 {[%clk 0:00:51.4]} 23... Nf5 {[%clk
0:00:12.8]} 24. Qe4 {[%clk 0:00:28.5]} 24... Nfe7 {[%clk 0:00:13.4]} 25. h3
{[%clk 0:00:26.1]} 25... Na7 {[%clk 0:00:11.4]} 26. Qg4 {[%clk 0:00:17.9]} 26...
Nf5 {[%clk 0:00:11.8]} 27. Qe4 {[%clk 0:00:16.3]} 27... Ne7 {[%clk 0:00:12]} 28.
Qg4 {[%clk 0:00:14.3]} 28... Rxc4 {[%clk 0:00:12.9]} 29. Rxc4 {[%clk 0:00:13.5]}
29... Nf5 {[%clk 0:00:14.5]} 30. Qe4 {[%clk 0:00:11.1]} 30... Rc8 {[%clk
0:00:16]} 31. Rxc8+ {[%clk 0:00:11.6]} 31... Nxc8 {[%clk 0:00:17.9]} 32. g4
{[%clk 0:00:11.3]} 32... Nfe7 {[%clk 0:00:18.5]} 33. Kg2 {[%clk 0:00:10.9]}
33... Qxa4 {[%clk 0:00:18.8]} 34. Qa8 {[%clk 0:00:10]} 34... Qc6 {[%clk
0:00:19.4]} 35. Qb8 {[%clk 0:00:09.6]} 35... Qd7 {[%clk 0:00:19.1]} 36. Be3
{[%clk 0:00:09]} 36... Nc6 {[%clk 0:00:19.7]} 37. Qa8 {[%clk 0:00:08.7]} 37...
Qc7 {[%clk 0:00:20.7]} 38. g5 {[%clk 0:00:06.1]} 38... hxg5 {[%clk 0:00:20.4]}
39. Nxg5 {[%clk 0:00:07]} 39... Ne7 {[%clk 0:00:21.6]} 40. Ne4 {[%clk
0:00:07.3]} 40... Qc6 {[%clk 0:00:22.8]} 41. Qxc6 {[%clk 0:00:06.8]} 41... Nxc6
{[%clk 0:00:24.7]} 42. Kf3 {[%clk 0:00:06.1]} 42... a4 {[%clk 0:00:25.8]} 43.
Ke2 {[%clk 0:00:06.9]} 43... b5 {[%clk 0:00:26.2]} 44. Nc3 {[%clk 0:00:07.2]}
44... N8a7 {[%clk 0:00:26]} 45. Kd3 {[%clk 0:00:07.3]} 45... Nb4+ {[%clk
0:00:26.4]} 46. Kd2 {[%clk 0:00:06.8]} 46... Nd5 {[%clk 0:00:27.8]} 47. Nxd5
{[%clk 0:00:06.4]} 47... exd5 {[%clk 0:00:29.7]} 48. Kc3 {[%clk 0:00:07.7]}
48... Nc6 {[%clk 0:00:31.2]} 49. f4 {[%clk 0:00:06]} 49... g6 {[%clk 0:00:32.7]}
50. h4 {[%clk 0:00:06.5]} 50... Kf8 {[%clk 0:00:33.1]} 51. f5 {[%clk 0:00:06.1]}
51... gxf5 {[%clk 0:00:34.3]} 52. h5 {[%clk 0:00:07.2]} 52... Kg7 {[%clk
0:00:35.7]} 53. Bf4 {[%clk 0:00:07.1]} 53... b4+ {[%clk 0:00:35.6]} 54. Kd3
{[%clk 0:00:07.1]} 54... a3 {[%clk 0:00:36.8]} 55. Kc2 {[%clk 0:00:06.5]} 55...
Nxd4+ {[%clk 0:00:38]} 0-1

[Event "*** Titled Tuesday Blitz AM"]
[Site "Chess.com"]
[Date "2020.01.07"]
[Round "7"]
[White "nonscitis"]
[Black "OneTrickPony_82"]
[Result "1-0"]
[WhiteElo "2563"]
[BlackElo "2426"]
[TimeControl "180+2"]
[EndTime "10:35:24 PST"]
[Termination "nonscitis won by resignation"]

1. d4 {[%clk 0:03:01.9]} 1... Nf6 {[%clk 0:03:00.7]} 2. c4 {[%clk 0:03:03.8]}
2... e6 {[%clk 0:03:01.9]} 3. Nf3 {[%clk 0:03:04.4]} 3... d5 {[%clk 0:03:03.1]}
4. Nc3 {[%clk 0:03:05.3]} 4... c5 {[%clk 0:03:04.2]} 5. cxd5 {[%clk 0:03:05.9]}
5... exd5 {[%clk 0:03:05.6]} 6. g3 {[%clk 0:03:03.4]} 6... Nc6 {[%clk
0:03:06.1]} 7. Bg2 {[%clk 0:03:04.3]} 7... cxd4 {[%clk 0:03:07.4]} 8. Nxd4
{[%clk 0:03:05.1]} 8... Bc5 {[%clk 0:03:09]} 9. Nb3 {[%clk 0:03:04]} 9... Bb6
{[%clk 0:03:08]} 10. O-O {[%clk 0:03:03.6]} 10... d4 {[%clk 0:03:09]} 11. Na4
{[%clk 0:03:02.6]} 11... O-O {[%clk 0:03:09.9]} 12. Bg5 {[%clk 0:03:01.1]} 12...
Re8 {[%clk 0:03:09.9]} 13. Nxb6 {[%clk 0:02:45.6]} 13... axb6 {[%clk 0:03:10.5]}
14. Bxf6 {[%clk 0:02:44.2]} 14... Qxf6 {[%clk 0:03:09.8]} 15. Bxc6 {[%clk
0:02:44.1]} 15... bxc6 {[%clk 0:03:10]} 16. Qxd4 {[%clk 0:02:42.4]} 16... Qxd4
{[%clk 0:03:08.4]} 17. Nxd4 {[%clk 0:02:42.3]} 17... c5 {[%clk 0:03:09.8]} 18.
Nb5 {[%clk 0:02:29.5]} 18... Rxe2 {[%clk 0:03:04.2]} 19. Rfe1 {[%clk 0:02:27.7]}
19... Rxe1+ {[%clk 0:02:28.7]} 20. Rxe1 {[%clk 0:02:27.2]} 20... Be6 {[%clk
0:02:30.3]} 21. a3 {[%clk 0:02:19.9]} 21... Rc8 {[%clk 0:02:23.9]} 22. Rd1
{[%clk 0:02:17]} 22... Kf8 {[%clk 0:02:21.6]} 23. f4 {[%clk 0:02:16.8]} 23...
Bc4 {[%clk 0:02:13.3]} 24. Nd6 {[%clk 0:02:07.5]} 24... Rd8 {[%clk 0:02:13.9]}
25. Rd2 {[%clk 0:02:07.5]} 25... Be6 {[%clk 0:02:02.2]} 26. Kf2 {[%clk
0:02:01.3]} 26... Ke7 {[%clk 0:02:00.1]} 27. Ne4 {[%clk 0:02:01.8]} 27... Rxd2+
{[%clk 0:01:52.7]} 28. Nxd2 {[%clk 0:02:03.7]} 28... Bd5 {[%clk 0:01:53.5]} 29.
Ke3 {[%clk 0:02:04.9]} 29... Kd6 {[%clk 0:01:53.6]} 30. Nb1 {[%clk 0:02:02.9]}
30... b5 {[%clk 0:01:47.8]} 31. Nc3 {[%clk 0:02:04.8]} 31... b4 {[%clk
0:01:48.2]} 32. Nxd5 {[%clk 0:01:34.4]} 32... Kxd5 {[%clk 0:00:14.4]} 33. a4
{[%clk 0:00:41.8]} 33... Kc4 {[%clk 0:00:14.8]} 34. Ke4 {[%clk 0:00:18.5]} 34...
Kb3 {[%clk 0:00:11.2]} 35. a5 {[%clk 0:00:17.5]} 35... c4 {[%clk 0:00:12.4]} 36.
a6 {[%clk 0:00:19.4]} 36... c3 {[%clk 0:00:13.9]} 37. bxc3 {[%clk 0:00:19.5]}
37... bxc3 {[%clk 0:00:14]} 38. a7 {[%clk 0:00:20.3]} 38... c2 {[%clk
0:00:15.9]} 39. a8=Q {[%clk 0:00:20.3]} 39... c1=Q {[%clk 0:00:17.1]} 40. Qb7+
{[%clk 0:00:20.7]} 40... Ka4 {[%clk 0:00:10.5]} 41. Qa6+ {[%clk 0:00:21.4]}
41... Kb4 {[%clk 0:00:11.6]} 42. Qb6+ {[%clk 0:00:21.5]} 42... Ka4 {[%clk
0:00:12.8]} 43. Qa7+ {[%clk 0:00:21.5]} 43... Kb4 {[%clk 0:00:13.2]} 44. Qxf7
{[%clk 0:00:19.9]} 44... Qc2+ {[%clk 0:00:14.3]} 45. Kf3 {[%clk 0:00:19.1]}
45... Qd3+ {[%clk 0:00:13.9]} 46. Kg4 {[%clk 0:00:20]} 46... Qe2+ {[%clk
0:00:14.4]} 47. Kh3 {[%clk 0:00:20.2]} 47... Qf1+ {[%clk 0:00:15.3]} 48. Kh4
{[%clk 0:00:21]} 48... Qe2 {[%clk 0:00:08.8]} 49. h3 {[%clk 0:00:20.6]} 49... h5
{[%clk 0:00:04.5]} 50. Qxg7 {[%clk 0:00:20]} 1-0

[Event "*** Titled Tuesday Blitz AM"]
[Site "Chess.com"]
[Date "2020.01.07"]
[Round "7"]
[White "2nd_life"]
[Black "attack2mateU"]
[Result "0-1"]
[WhiteElo "2488"]
[BlackElo "2715"]
[TimeControl "180+2"]
[EndTime "10:35:25 PST"]
[Termination "attack2mateU won on time"]

1. e4 {[%clk 0:03:01.9]} 1... c5 {[%clk 0:03:00.6]} 2. Nf3 {[%clk 0:03:02.2]}
2... d6 {[%clk 0:03:01.9]} 3. d4 {[%clk 0:03:02.8]} 3... cxd4 {[%clk 0:03:03.5]}
4. Nxd4 {[%clk 0:03:04.4]} 4... Nf6 {[%clk 0:03:04.4]} 5. Nc3 {[%clk 0:03:05.5]}
5... a6 {[%clk 0:03:05.3]} 6. Be3 {[%clk 0:03:06.1]} 6... e5 {[%clk 0:03:04.5]}
7. Nb3 {[%clk 0:03:06.3]} 7... Be6 {[%clk 0:03:05.3]} 8. Qd2 {[%clk 0:03:06.6]}
8... Nbd7 {[%clk 0:03:00.3]} 9. f3 {[%clk 0:03:05.3]} 9... h5 {[%clk 0:03:00.4]}
10. Be2 {[%clk 0:02:56]} 10... Be7 {[%clk 0:02:56.4]} 11. Nd5 {[%clk 0:02:47.3]}
11... Nxd5 {[%clk 0:02:56.3]} 12. exd5 {[%clk 0:02:49.2]} 12... Bf5 {[%clk
0:02:57.1]} 13. c4 {[%clk 0:02:43.4]} 13... Bh4+ {[%clk 0:02:53.3]} 14. g3
{[%clk 0:02:41.3]} 14... Be7 {[%clk 0:02:53.8]} 15. Na5 {[%clk 0:02:39.6]} 15...
Qc7 {[%clk 0:02:48.9]} 16. b4 {[%clk 0:02:38]} 16... Nf6 {[%clk 0:02:44.8]} 17.
Rc1 {[%clk 0:02:33]} 17... Rd8 {[%clk 0:02:40.9]} 18. O-O {[%clk 0:02:31.1]}
18... Qd7 {[%clk 0:02:12.6]} 19. Rfd1 {[%clk 0:02:22.8]} 19... e4 {[%clk
0:02:05.2]} 20. Bg5 {[%clk 0:02:05.5]} 20... exf3 {[%clk 0:01:44.1]} 21. Bxf3
{[%clk 0:02:05.1]} 21... Ne4 {[%clk 0:01:44.4]} 22. Bxe4 {[%clk 0:02:00.7]}
22... Bxe4 {[%clk 0:01:46.3]} 23. Re1 {[%clk 0:01:58]} 23... f5 {[%clk
0:01:46.3]} 24. h4 {[%clk 0:01:38.2]} 24... Bxg5 {[%clk 0:01:23.7]} 25. Qxg5
{[%clk 0:01:37.2]} 25... Kf7 {[%clk 0:01:22.5]} 26. c5 {[%clk 0:01:07.4]} 26...
dxc5 {[%clk 0:00:51.7]} 27. Rxe4 {[%clk 0:00:57.3]} 27... fxe4 {[%clk
0:00:51.5]} 28. Rf1+ {[%clk 0:00:58.4]} 28... Kg8 {[%clk 0:00:52]} 29. Nxb7
{[%clk 0:00:59.1]} 29... Rf8 {[%clk 0:00:27.1]} 30. Rxf8+ {[%clk 0:00:59.2]}
30... Kxf8 {[%clk 0:00:28.1]} 31. Nxc5 {[%clk 0:01:00.2]} 31... Qg4 {[%clk
0:00:23.6]} 32. Qxg4 {[%clk 0:00:30.8]} 32... hxg4 {[%clk 0:00:24.2]} 33. Kf2
{[%clk 0:00:32.2]} 33... Rh5 {[%clk 0:00:18.9]} 34. Ne6+ {[%clk 0:00:17]} 34...
Ke7 {[%clk 0:00:16.8]} 35. Nf4 {[%clk 0:00:17]} 35... Re5 {[%clk 0:00:14.1]} 36.
Ke3 {[%clk 0:00:16.3]} 36... Kd6 {[%clk 0:00:15.3]} 37. a4 {[%clk 0:00:17.1]}
37... Re8 {[%clk 0:00:15.8]} 38. h5 {[%clk 0:00:12.5]} 38... Rb8 {[%clk
0:00:15.5]} 39. b5 {[%clk 0:00:09.2]} 39... axb5 {[%clk 0:00:09.6]} 40. axb5
{[%clk 0:00:10.4]} 40... Ke5 {[%clk 0:00:11.2]} 41. d6 {[%clk 0:00:11.6]} 41...
Rxb5 {[%clk 0:00:10.6]} 42. d7 {[%clk 0:00:11.8]} 42... Rb3+ {[%clk 0:00:11.9]}
43. Ke2 {[%clk 0:00:08]} 43... Rb8 {[%clk 0:00:13.4]} 44. Ng6+ {[%clk
0:00:06.7]} 44... Kf6 {[%clk 0:00:08]} 45. Ke3 {[%clk 0:00:06.3]} 45... Rd8
{[%clk 0:00:07.2]} 46. Kxe4 {[%clk 0:00:05.7]} 46... Rxd7 {[%clk 0:00:08.9]} 47.
Nf4 {[%clk 0:00:04]} 47... Re7+ {[%clk 0:00:07.7]} 48. Kd4 {[%clk 0:00:04.4]}
48... Kg5 {[%clk 0:00:09.2]} 49. Nd5 {[%clk 0:00:02.5]} 49... Re1 {[%clk
0:00:08.4]} 50. Nf4 {[%clk 0:00:02.5]} 50... Kf5 {[%clk 0:00:07.7]} 0-1